[Event "Elegant 1st Division League 2024"]
[Site "Dhaka"]
[Date "2024.07.17"]
[Round "7.20"]
[White "Noshin, Anjum"]
[Black "Sacchu, Afzal Hossain"]
[Result "1/2-1/2"]
[Annotator "RC"]
[ECO "B06"]
[WhiteElo "2056"]
[BlackElo "1981"]
[PlyCount "105"]
[EventDate "2024.07.10"]
[EventType "team-tourn"]
[EventCountry "BAN"]
[SourceTitle "playchess.com"]
[Source "ChessBase"]
[SourceQuality "1"]
[TimeControl "5400+30"]

1. e4 {[%emt 0:00:03]} d6 {[%emt 0:00:53]} 2. d4 {[%emt 0:00:08]} g6 {[%emt 0:00:16]} 3. Nf3 {[%emt 0:00:36]} Bg7 {[%emt 0:00:09]} 4. Nc3 {[%emt 0:00:35]} Nc6 {[%emt 0:00:53]} 5. Be3 {[%emt 0:01:27]} e5 {[%emt 0:01:21]} 6. Bb5 {[%emt 0:00:43]} Bd7 {[%emt 0:00:34]} 7. Qd2 {[%emt 0:01:46]} Nge7 {[%emt 0:01:36]} 8. O-O-O {[%emt 0:02:09]} O-O {[%emt 0:04:54]} 9. dxe5 {[%emt 0:09:40]} Nxe5 {[%emt 1:24:24]} 10. Nxe5 {[%emt 0:02:12]} Bxe5 {[%emt 0:00:00]} 11. Bxd7 {[%emt 0:09:22]} Qxd7 {[%emt 0:00:00]} 12. Bh6 {[%emt 0:03:06]} Rfe8 {[%emt 0:00:00]} 13. h4 {[%emt 0:04:29]} Qc6 {[%emt 0:00:00]} 14. f3 {[%emt 0:02:06]} Qc4 {[%emt 0:00:00]} 15. h5 {[%emt 0:06:43]} Bxc3 {[%emt 0:00:00]} 16. Qxc3 {[%emt 0:03:14]} Qxc3 {[%emt 0:00:00]} 17. bxc3 {[%emt 0:00:08]} Nc6 {[%emt 0:00:00]} 18. hxg6 {[%emt 0:07:34]} fxg6 {[%emt 0:00:00]} 19. Rh4 {[%emt 0:00:36]} Re7 {[%emt 0:00:00]} 20. Rdh1 {[%emt 0:01:12]} Rae8 {[%emt 0:00:00]} 21. Kb2 {[%emt 0:03:52]} Rf7 {[%emt 0:00:00]} 22. c4 {[%emt 0:05:50]} a6 {[%emt 0:00:00]} 23. Kc3 {[%emt 0:01:58]} b6 {[%emt 0:00:00]} 24. a3 {[%emt 0:01:32]} Re5 {[%emt 0:00:00]} 25. Kd3 {[%emt 0:03:18]} Ra5 {[%emt 0:00:00]} 26. Bc1 {[%emt 0:11:32]} Ne5+ {[%emt 0:00:00]} 27. Kc3 {[%emt 0:18:09]} Rc5 {[%emt 0:00:00]} 28. f4 {[%emt 0:00:00]} Nxc4 {[%emt 0:00:00]} 29. Kd3 {[%emt 0:00:00]} b5 {[%emt 0:00:00]} 30. g4 {[%emt 0:00:00]} c6 {[%emt 0:00:00]} 31. g5 {[%emt 0:00:00]} a5 {[%emt 0:00:00]} 32. R1h3 {[%emt 0:00:00]} b4 {[%emt 0:00:00]} 33. axb4 {[%emt 0:00:00]} axb4 {[%emt 0:00:00]} 34. Be3 {[%emt 0:00:00]} Nxe3 {[%emt 0:00:00]} 35. Rxe3 {[%emt 0:00:00]} Rc3+ {[%emt 0:00:00]} 36. Kd2 {[%emt 0:00:00]} Rxe3 {[%emt 0:00:00]} 37. Kxe3 {[%emt 0:00:00]} Ra7 {[%emt 0:00:00]} 38. f5 {[%emt 0:01:12]} Ra2 {[%emt 0:00:00]} 39. e5 {[%emt 0:02:58]} dxe5 {[%emt 0:00:00]} 40. fxg6 {[%emt 0:00:48]} hxg6 {[%emt 0:00:00]} 41. Rc4 {[%emt 0:00:34]} Ra3+ {[%emt 0:00:00]} 42. Ke4 {[%emt 0:00:07]} Rg3 {[%emt 0:00:00]} 43. Kxe5 {[%emt 0:00:10]} Kf7 {[%emt 0:00:00]} 44. Rxc6 {[%emt 0:02:07]} Rxg5+ {[%emt 0:00:00]} 45. Kf4 {[%emt 0:00:28]} Rb5 {[%emt 0:00:00]} 46. Kg4 {[%emt 0:00:29]} Kg7 {[%emt 0:00:00]} 47. Rd6 {[%emt 0:00:27]} Kf7 {[%emt 0:00:00]} 48. Rc6 {[%emt 0:00:31]} g5 {[%emt 0:00:00]} 49. Rd6 {[%emt 0:00:17]} Ke7 {[%emt 0:00:00]} 50. Rd3 {[%emt 0:00:15]} Ke6 {[%emt 0:00:00]} 51. Rb3 {[%emt 0:00:30]} Kd5 {[%emt 0:01:32]} 52. c3 {[%emt 0:00:07]} Kc4 {[%emt 0:00:20]} 53. Rxb4+ {[%emt 0:00:05]} 1/2-1/2

[Event "Elegant 1st Division League 2024"]
[Site "Dhaka"]
[Date "2024.07.17"]
[Round "7.21"]
[White "Hossain, Alamgir"]
[Black "Mirza Arifur, Rahman"]
[Result "*"]
[Annotator "RC"]
[ECO "C42"]
[WhiteElo "1974"]
[BlackElo "1823"]
[PlyCount "55"]
[EventDate "2024.07.10"]
[EventType "team-tourn"]
[EventCountry "BAN"]
[SourceTitle "playchess.com"]
[Source "ChessBase"]
[SourceQuality "1"]
[TimeControl "5400+30"]

1. e4 {[%emt 0:02:45]} e5 {[%emt 0:00:17]} 2. Nf3 {[%emt 0:00:56]} Nc6 {[%emt 0:00:05]} 3. Bc4 {[%emt 0:01:05]} Nf6 {[%emt 0:00:32]} 4. Nc3 {[%emt 0:00:57]} Bb4 {[%emt 0:02:11]} 5. O-O {[%emt 0:01:19]} O-O {[%emt 0:00:05]} 6. h3 {[%emt 0:00:21]} Bxc3 {[%emt 0:00:21]} 7. dxc3 {[%emt 0:00:36]} Nxe4 {[%emt 0:00:54]} 8. Bd5 {[%emt 1:26:31]} Nc5 {[%emt 0:01:18]} 9. Bxc6 {[%emt 1:25:49]} bxc6 {[%emt 0:00:31]} 10. Nxe5 {[%emt 0:00:31]} Qe7 {[%emt 0:02:23]} 11. Re1 {[%emt 1:20:14]} Ne6 {[%emt 0:00:19]} 12. f4 {[%emt 0:01:20]} f6 {[%emt 0:00:12]} 13. Nf3 {[%emt 0:00:59]} Rb8 {[%emt 0:00:58]} 14. b4 {[%emt 0:04:34]} Qd6 {[%emt 0:07:07]} 15. f5 {[%emt 0:02:44]} Qxd1 {[%emt 0:01:54]} 16. Rxd1 {[%emt 0:00:15]} Nd8 {[%emt 0:00:01]} 17. Be3 {[%emt 0:01:32]} a6 {[%emt 0:01:43]} 18. g4 {[%emt 0:01:30]} Re8 {[%emt 0:00:03]} 19. Bf4 {[%emt 0:02:14]} d6 {[%emt 0:00:12]} 20. Re1 {[%emt 1:07:44]} Kf7 {[%emt 0:00:37]} 21. a3 {[%emt 0:01:03]} Bd7 {[%emt 0:00:52]} 22. c4 {[%emt 0:00:36]} Nb7 {[%emt 0:00:30]} 23. Kf2 {[%emt 0:02:03]} c5 {[%emt 0:00:20]} 24. c3 {[%emt 0:01:59]} Bc6 {[%emt 0:00:28]} 25. Nd2 {[%emt 0:00:27]} Rxe1 {[%emt 0:02:05]} 26. Rc1 {[%emt 1:04:18]} Rd1 27. Rxd1 {[%emt 0:00:00]} Re8 {[%emt 0:00:39]} 28. Re1 {[%emt 0:00:00]} *

[Event "Elegant 1st Division League 2024"]
[Site "Dhaka"]
[Date "2024.07.17"]
[Round "7.21"]
[White "Hossain, Alamgir"]
[Black "Mirza Arifur, Rahman"]
[Result "1-0"]
[Annotator "RC"]
[ECO "C42"]
[WhiteElo "1974"]
[BlackElo "1823"]
[PlyCount "125"]
[EventDate "2024.07.10"]
[EventType "team-tourn"]
[EventCountry "BAN"]
[SourceTitle "playchess.com"]
[Source "ChessBase"]
[SourceQuality "1"]
[TimeControl "5400+30"]

1. e4 {[%emt 0:02:45]} e5 {[%emt 0:00:17]} 2. Nf3 {[%emt 0:00:56]} Nc6 {[%emt 0:00:05]} 3. Bc4 {[%emt 0:01:05]} Nf6 {[%emt 0:00:32]} 4. Nc3 {[%emt 0:00:57]} Bb4 {[%emt 0:02:11]} 5. O-O {[%emt 0:01:19]} O-O {[%emt 0:00:05]} 6. h3 {[%emt 0:00:21]} Bxc3 {[%emt 0:00:21]} 7. dxc3 {[%emt 0:00:36]} Nxe4 {[%emt 0:00:54]} 8. Bd5 {[%emt 0:01:12]} Nc5 {[%emt 0:01:18]} 9. Bxc6 {[%emt 0:06:04]} bxc6 {[%emt 0:00:31]} 10. Nxe5 {[%emt 0:00:31]} Qe7 {[%emt 0:02:23]} 11. Re1 {[%emt 0:01:52]} Ne6 {[%emt 0:00:19]} 12. f4 {[%emt 0:01:20]} f6 {[%emt 0:00:12]} 13. Nf3 {[%emt 0:00:59]} Rb8 {[%emt 0:00:58]} 14. b4 {[%emt 0:04:34]} Qd6 {[%emt 0:07:07]} 15. f5 {[%emt 0:02:44]} Qxd1 {[%emt 0:01:54]} 16. Rxd1 {[%emt 0:00:15]} Nd8 {[%emt 0:00:01]} 17. Be3 {[%emt 0:01:32]} a6 {[%emt 0:01:43]} 18. g4 {[%emt 0:01:30]} Re8 {[%emt 0:00:03]} 19. Bf4 {[%emt 0:02:14]} d6 {[%emt 0:00:12]} 20. Re1 {[%emt 0:00:18]} Kf7 {[%emt 0:00:37]} 21. a3 {[%emt 0:01:03]} Bd7 {[%emt 0:00:52]} 22. c4 {[%emt 0:00:36]} Nb7 {[%emt 0:00:30]} 23. Kf2 {[%emt 0:02:03]} c5 {[%emt 0:00:20]} 24. c3 {[%emt 0:01:59]} Bc6 {[%emt 0:00:28]} 25. Nd2 {[%emt 0:00:27]} Rxe1 {[%emt 0:02:05]} 26. Rxe1 {[%emt 0:00:13]} Re8 {[%emt 0:00:09]} 27. Rxe8 {[%emt 0:01:11]} Kxe8 {[%emt 0:00:09]} 28. Be3 {[%emt 0:00:19]} cxb4 {[%emt 0:01:45]} 29. cxb4 {[%emt 0:00:27]} d5 {[%emt 0:05:48]} 30. c5 {[%emt 0:01:54]} a5 {[%emt 0:00:29]} 31. Nb3 {[%emt 0:01:00]} axb4 {[%emt 0:00:08]} 32. axb4 {[%emt 0:00:13]} Bd7 {[%emt 0:02:29]} 33. Nd4 {[%emt 0:00:32]} c6 {[%emt 0:00:23]} 34. Nf3 {[%emt 0:04:07]} h5 {[%emt 0:16:50]} 35. Kg3 {[%emt 0:01:13]} hxg4 {[%emt 0:00:16]} 36. hxg4 {[%emt 0:00:17]} Nd8 {[%emt 0:00:27]} 37. Bf4 {[%emt 0:02:04]} Nf7 {[%emt 0:54:09]} 38. Bc7 {[%emt 0:06:32]} Ke7 {[%emt 0:00:00]} 39. Kf4 {[%emt 0:03:04]} Nh8 {[%emt 0:00:00]} 40. Bd6+ {[%emt 0:00:47]} Kf7 {[%emt 0:00:00]} 41. g5 {[%emt 0:03:52]} g6 {[%emt 0:00:00]} 42. gxf6 {[%emt 0:02:06]} gxf5 {[%emt 0:00:00]} 43. Ne5+ {[%emt 0:02:09]} Ke6 {[%emt 0:00:00]} 44. Nxd7 {[%emt 0:06:14]} Kxd7 {[%emt 0:00:00]} 45. Kxf5 {[%emt 0:00:21]} Nf7 {[%emt 0:00:00]} 46. Bf4 {[%emt 0:00:21]} d4 {[%emt 0:00:00]} 47. Bd2 {[%emt 0:03:12]} Nd8 {[%emt 0:00:00]} 48. Ke5 {[%emt 0:01:38]} Nf7+ {[%emt 0:00:00]} 49. Kf5 {[%emt 0:00:46]} Nd8 {[%emt 0:00:00]} 50. Bc1 {[%emt 0:02:10]} Nf7 {[%emt 0:00:00]} 51. Bb2 {[%emt 0:01:55]} d3 {[%emt 0:00:00]} 52. Bc3 {[%emt 0:00:45]} Nd8 {[%emt 0:00:00]} 53. Ke4 {[%emt 0:02:39]} Ke6 {[%emt 0:00:00]} 54. Kxd3 {[%emt 0:00:28]} Kd5 {[%emt 0:08:30]} 55. Ke3 {[%emt 0:01:31]} Ne6 {[%emt 0:00:00]} 56. f7 {[%emt 0:04:45]} Kc4 {[%emt 0:00:00]} 57. Bg7 {[%emt 0:00:36]} Kxb4 {[%emt 0:00:00]} 58. f8=Q {[%emt 0:00:16]} Nxf8 59. Bxf8 {[%emt 0:21:11]} Kb5 {[%emt 0:00:00]} 60. Kd4 {[%emt 0:00:00]} Ka6 {[%emt 0:00:00]} 61. Ke5 {[%emt 0:00:00]} Kb7 {[%emt 0:00:00]} 62. Kd6 {[%emt 0:00:00]} Kc8 {[%emt 0:04:00]} 63. Kxc6 {[%emt 0:00:00]} 1-0

[Event "Elegant 1st Division League 2024"]
[Site "Dhaka"]
[Date "2024.07.17"]
[Round "7.22"]
[White "Salim Mohammed, Salim Al Amri"]
[Black "Priyanshu Barua"]
[Result "0-1"]
[Annotator "RC"]
[ECO "A25"]
[WhiteElo "1928"]
[BlackElo "1987"]
[PlyCount "82"]
[EventDate "2024.07.10"]
[EventType "team-tourn"]
[EventCountry "BAN"]
[SourceTitle "playchess.com"]
[Source "ChessBase"]
[SourceQuality "1"]
[TimeControl "5400+30"]

1. c4 {[%emt 0:09:55]} e5 {[%emt 0:01:34]} 2. Nc3 {[%emt 0:00:03]} Nc6 {[%emt 0:00:09]} 3. g3 {[%emt 0:00:14]} f5 {[%emt 0:01:27]} 4. e3 {[%emt 0:01:18]} Nf6 {[%emt 0:00:09]} 5. Nge2 {[%emt 0:00:28]} Bb4 {[%emt 0:00:27]} 6. Bg2 {[%emt 0:02:07]} Bxc3 {[%emt 0:00:48]} 7. Nxc3 {[%emt 0:01:11]} O-O {[%emt 0:00:15]} 8. O-O {[%emt 0:00:17]} d6 {[%emt 0:00:12]} 9. d4 {[%emt 0:00:46]} Qe8 {[%emt 0:00:16]} 10. Re1 {[%emt 0:04:30]} Kh8 {[%emt 0:03:15]} 11. Ne2 {[%emt 0:05:25]} Qh5 {[%emt 0:01:10]} 12. Nc3 {[%emt 0:07:58]} Qg6 {[%emt 0:03:58]} 13. a3 {[%emt 0:03:39]} Bd7 {[%emt 0:07:41]} 14. b4 {[%emt 0:00:53]} Rad8 {[%emt 0:00:17]} 15. Nb5 {[%emt 0:04:03]} Rc8 {[%emt 0:03:32]} 16. Bb2 {[%emt 0:09:56]} a6 {[%emt 0:01:18]} 17. dxe5 {[%emt 0:05:08]} Nxe5 {[%emt 0:01:42]} 18. Bxe5 {[%emt 0:02:07]} dxe5 {[%emt 0:00:26]} 19. Nc3 {[%emt 0:00:33]} f4 {[%emt 0:02:21]} 20. exf4 {[%emt 0:02:26]} exf4 {[%emt 0:00:32]} 21. Bxb7 {[%emt 0:10:09]} fxg3 {[%emt 0:02:20]} 22. hxg3 {[%emt 0:09:15]} Rcd8 {[%emt 0:05:04]} 23. Nd5 {[%emt 0:08:06]} Ng4 {[%emt 0:00:44]} 24. Ra2 {[%emt 0:01:38]} c6 {[%emt 0:02:05]} 25. Qc2 {[%emt 0:02:47]} Qh5 {[%emt 0:02:06]} 26. f4 {[%emt 0:00:10]} cxd5 {[%emt 0:01:02]} 27. Bxd5 {[%emt 0:00:19]} Rde8 {[%emt 0:01:24]} 28. Raa1 {[%emt 0:03:16]} Bf5 {[%emt 0:04:58]} 29. Qd2 {[%emt 0:00:36]} Rd8 {[%emt 0:01:26]} 30. Re7 {[%emt 0:01:33]} Nf6 {[%emt 0:01:04]} 31. Rae1 {[%emt 0:00:20]} Qg6 {[%emt 0:00:45]} 32. Qg2 {[%emt 0:02:03]} Nxd5 {[%emt 0:00:14]} 33. cxd5 {[%emt 0:00:02]} Rc8 {[%emt 0:00:23]} 34. R1e2 {[%emt 0:01:57]} h6 {[%emt 0:00:22]} 35. Kf2 {[%emt 0:00:23]} Bg4 {[%emt 0:00:36]} 36. Rd2 {[%emt 0:00:22]} Qb6+ {[%emt 0:00:35]} 37. Kf1 {[%emt 0:01:02]} Rc1+ {[%emt 0:02:07]} 38. Re1 {[%emt 0:00:03]} Rxe1+ {[%emt 0:00:07]} 39. Kxe1 {[%emt 0:00:07]} Qe3+ {[%emt 0:00:04]} 40. Kf1 {[%emt 0:00:23]} Rc8 {[%emt 0:00:05]} 41. Qf2 {[%emt 0:00:08]} Rc1+ {[%emt 0:00:10]} 0-1

[Event "Elegant 1st Division League 2024"]
[Site "Dhaka"]
[Date "2024.07.17"]
[Round "7.23"]
[White "Hossain, Delwar"]
[Black "Afnan, Zarif Haque"]
[Result "0-1"]
[Annotator "RC"]
[ECO "A22"]
[WhiteElo "1959"]
[BlackElo "1853"]
[PlyCount "100"]
[EventDate "2024.07.10"]
[EventType "team-tourn"]
[EventCountry "BAN"]
[SourceTitle "playchess.com"]
[Source "ChessBase"]
[SourceQuality "1"]
[TimeControl "5400+30"]

1. c4 {[%emt 0:02:22]} e5 {[%emt 0:00:18]} 2. Nc3 {[%emt 0:00:06]} Nf6 {[%emt 0:00:07]} 3. e4 {[%emt 0:00:09]} Bc5 {[%emt 0:03:42]} 4. h3 {[%emt 0:00:13]} d6 {[%emt 0:01:00]} 5. Nf3 {[%emt 0:00:07]} a5 {[%emt 0:05:24]} 6. a4 {[%emt 0:02:18]} c6 {[%emt 0:02:41]} 7. d3 {[%emt 0:00:08]} Qb6 {[%emt 0:01:21]} 8. Qc2 {[%emt 0:00:42]} O-O {[%emt 0:05:19]} 9. g3 {[%emt 0:00:04]} Na6 {[%emt 0:03:52]} 10. Nd1 {[%emt 0:01:45]} Ne8 {[%emt 0:18:40]} 11. Bg2 {[%emt 0:04:17]} f5 {[%emt 0:07:13]} 12. Be3 {[%emt 0:02:13]} Nec7 {[%emt 0:01:44]} 13. Qe2 {[%emt 0:03:31]} Ne6 {[%emt 0:09:42]} 14. exf5 {[%emt 0:10:10]} Rxf5 {[%emt 0:00:23]} 15. O-O {[%emt 0:00:17]} Bd7 {[%emt 0:11:06]} 16. Nc3 {[%emt 0:04:36]} Qc7 {[%emt 0:01:54]} 17. Ne4 {[%emt 0:01:02]} Rff8 {[%emt 0:02:28]} 18. b3 {[%emt 0:05:57]} Rae8 {[%emt 0:01:30]} 19. Rab1 {[%emt 0:00:34]} d5 {[%emt 0:11:48]} 20. Neg5 {[%emt 0:15:08]} Nd4 {[%emt 0:00:55]} 21. Qd1 {[%emt 0:06:27]} h6 {[%emt 0:00:50]} 22. cxd5 {[%emt 0:00:42]} hxg5 {[%emt 0:02:54]} 23. Nxg5 {[%emt 0:02:21]} Qd6 {[%emt 0:00:28]} 24. Ne4 {[%emt 0:05:40]} Qg6 {[%emt 0:01:29]} 25. Rc1 {[%emt 0:04:15]} b6 {[%emt 0:00:19]} 26. dxc6 {[%emt 0:00:52]} Bxc6 {[%emt 0:00:30]} 27. h4 {[%emt 0:00:40]} Bd7 {[%emt 0:01:43]} 28. Ng5 {[%emt 0:00:49]} Nb4 {[%emt 0:00:27]} 29. Rc4 {[%emt 0:06:17]} Bc6 {[%emt 0:01:58]} 30. h5 {[%emt 0:01:44]} Qf6 {[%emt 0:00:57]} 31. Ne4 {[%emt 0:01:08]} Qf5 {[%emt 0:01:06]} 32. f4 {[%emt 0:19:56]} Qd7 {[%emt 0:01:07]} 33. Kh2 {[%emt 0:00:00]} Bd5 {[%emt 0:00:19]} 34. Rc3 {[%emt 0:00:00]} Nxb3 {[%emt 0:00:31]} 35. Bh3 {[%emt 0:00:00]} Qb7 {[%emt 0:00:47]} 36. Bxc5 {[%emt 0:00:00]} Nxc5 {[%emt 0:00:09]} 37. Nd6 {[%emt 0:00:00]} Qe7 {[%emt 0:00:31]} 38. Nxe8 {[%emt 0:00:00]} Rxe8 {[%emt 0:00:13]} 39. h6 {[%emt 0:00:00]} exf4 {[%emt 0:00:37]} 40. d4 {[%emt 0:00:00]} Ncd3 {[%emt 0:00:54]} 41. Bg4 {[%emt 0:00:00]} fxg3+ {[%emt 0:00:20]} 42. Kh3 {[%emt 0:00:52]} g2 {[%emt 0:00:40]} 43. Rf5 {[%emt 0:03:52]} Qe3+ {[%emt 0:00:29]} 44. Kh2 {[%emt 0:00:22]} Qxh6+ {[%emt 0:00:18]} 45. Bh5 {[%emt 0:00:39]} Qd6+ {[%emt 0:00:20]} 46. Kg1 {[%emt 0:01:15]} Re1+ {[%emt 0:02:27]} 47. Qxe1 {[%emt 0:00:30]} Nxe1 {[%emt 0:00:30]} 48. Rc8+ Kh7 {[%emt 0:00:30]} 49. Rg5 {[%emt 0:01:00]} Nf3+ {[%emt 0:00:30]} 50. Bxf3 {[%emt 0:00:30]} Bxf3 0-1

[Event "Elegant 1st Division League 2024"]
[Site "Dhaka"]
[Date "2024.07.17"]
[Round "7.24"]
[White "Islam, Obaidul Shahin"]
[Black "Khan, Monir Hossain"]
[Result "1/2-1/2"]
[Annotator "RC"]
[ECO "B08"]
[WhiteElo "1976"]
[BlackElo "1928"]
[PlyCount "115"]
[EventDate "2024.07.10"]
[EventType "team-tourn"]
[EventCountry "BAN"]
[SourceTitle "playchess.com"]
[Source "ChessBase"]
[SourceQuality "1"]
[TimeControl "5400+30"]

1. e4 {[%emt 0:01:57]} g6 {[%emt 0:00:16]} 2. Nf3 {[%emt 0:00:20]} Bg7 {[%emt 0:00:05]} 3. Nc3 {[%emt 0:00:06]} d6 {[%emt 0:00:26]} 4. d4 {[%emt 0:00:08]} Nd7 {[%emt 0:00:51]} 5. Be3 {[%emt 0:00:33]} Ngf6 {[%emt 0:00:54]} 6. Qd2 {[%emt 0:00:22]} Ng4 {[%emt 0:00:12]} 7. Bf4 {[%emt 0:00:27]} c5 {[%emt 0:00:23]} 8. h3 {[%emt 0:00:39]} cxd4 {[%emt 0:00:03]} 9. Nxd4 {[%emt 0:08:02]} Nge5 {[%emt 0:05:43]} 10. Be2 {[%emt 0:01:29]} h6 {[%emt 0:00:14]} 11. Nb3 {[%emt 0:04:22]} a6 {[%emt 0:00:24]} 12. Be3 {[%emt 0:00:37]} b5 {[%emt 0:00:23]} 13. f4 {[%emt 0:01:33]} Nc6 {[%emt 0:00:28]} 14. O-O {[%emt 0:04:33]} Bb7 {[%emt 0:01:07]} 15. f5 {[%emt 0:00:55]} g5 {[%emt 0:00:15]} 16. Bd3 {[%emt 0:08:06]} Nde5 {[%emt 0:00:24]} 17. Nd5 {[%emt 0:00:44]} Nd7 {[%emt 0:01:39]} 18. c3 {[%emt 0:01:08]} Nce5 {[%emt 0:00:06]} 19. Nd4 {[%emt 0:05:04]} Nc5 {[%emt 0:01:37]} 20. Bc2 {[%emt 0:04:23]} Nc4 {[%emt 0:07:35]} 21. Qe2 {[%emt 0:01:22]} Nxe3 {[%emt 0:00:21]} 22. Qxe3 {[%emt 0:00:15]} O-O {[%emt 0:03:07]} 23. f6 {[%emt 0:02:04]} exf6 {[%emt 0:00:18]} 24. Nf5 {[%emt 0:00:27]} Bxd5 {[%emt 0:02:22]} 25. exd5 {[%emt 0:00:15]} Re8 {[%emt 0:01:13]} 26. Qd2 {[%emt 0:05:07]} Re5 {[%emt 0:00:38]} 27. b4 {[%emt 0:01:08]} Nd7 {[%emt 0:00:09]} 28. Rf2 {[%emt 0:01:28]} Nf8 {[%emt 0:00:17]} 29. Raf1 {[%emt 0:00:55]} Qb6 {[%emt 0:08:24]} 30. Kh1 {[%emt 0:02:42]} Rae8 {[%emt 0:10:02]} 31. Qd1 {[%emt 0:00:44]} Ng6 {[%emt 0:24:23]} 32. Nxg7 {[%emt 0:04:35]} Kxg7 {[%emt 0:00:07]} 33. Bxg6 {[%emt 0:09:35]} Qxf2 {[%emt 0:00:34]} 34. Rxf2 {[%emt 0:04:15]} Re1+ {[%emt 0:00:11]} 35. Rf1 {[%emt 0:02:26]} Rxd1 {[%emt 0:00:04]} 36. Rxd1 {[%emt 0:00:12]} fxg6 {[%emt 0:00:20]} 37. a4 {[%emt 0:01:08]} Rc8 {[%emt 0:00:14]} 38. axb5 {[%emt 0:00:33]} axb5 {[%emt 0:00:01]} 39. Ra1 {[%emt 0:00:40]} Rxc3 {[%emt 0:02:06]} 40. Ra7+ {[%emt 0:01:31]} Kg8 {[%emt 0:00:07]} 41. Rd7 {[%emt 0:01:49]} Rc4 {[%emt 0:00:09]} 42. Rxd6 {[%emt 0:00:29]} Rxb4 {[%emt 0:00:03]} 43. Rxf6 {[%emt 0:00:31]} Rb1+ {[%emt 0:00:36]} 44. Kh2 {[%emt 0:22:51]} Rd1 {[%emt 0:00:15]} 45. d6 {[%emt 0:00:00]} Kg7 {[%emt 0:00:02]} 46. Re6 {[%emt 0:00:00]} Kf7 {[%emt 0:00:48]} 47. Re7+ {[%emt 0:00:00]} Kf6 {[%emt 0:00:05]} 48. Rb7 {[%emt 0:00:00]} Rxd6 {[%emt 0:00:06]} 49. Rxb5 {[%emt 0:00:00]} Re6 {[%emt 0:02:57]} 50. Ra5 {[%emt 0:00:00]} Re5 {[%emt 0:00:15]} 51. Ra6+ {[%emt 0:00:00]} Re6 {[%emt 0:01:28]} 52. Ra5 {[%emt 0:00:00]} h5 {[%emt 0:00:04]} 53. Kg1 {[%emt 0:00:00]} Re5 {[%emt 0:00:43]} 54. Ra6+ {[%emt 0:00:00]} Kf5 {[%emt 0:00:44]} 55. Kf2 {[%emt 0:00:00]} h4 {[%emt 0:02:17]} 56. Rb6 {[%emt 0:00:00]} Rc5 {[%emt 0:00:34]} 57. Ra6 {[%emt 0:00:00]} Ke5 {[%emt 0:29:51]} 58. Ke1 {[%emt 0:07:00]} 1/2-1/2

[Event "Elegant 1st Division League 2024"]
[Site "Dhaka"]
[Date "2024.07.18"]
[Round "8.1"]
[White "Ahmed, Mahtabuddin"]
[Black "Mirza Arifur, Rahman"]
[Result "1-0"]
[Annotator "RC"]
[ECO "A28"]
[WhiteElo "1974"]
[BlackElo "1823"]
[PlyCount "75"]
[EventDate "2024.07.10"]
[EventType "team-tourn"]
[EventCountry "BAN"]
[SourceTitle "playchess.com"]
[Source "ChessBase"]
[SourceQuality "1"]
[TimeControl "5400+30"]

1. c4 {[%emt 0:00:27]} e5 {[%emt 0:00:23]} 2. Nc3 {[%emt 0:00:09]} Nf6 {[%emt 0:01:48]} 3. Nf3 {[%emt 0:00:55]} Nc6 {[%emt 0:00:58]} 4. e3 {[%emt 0:01:31]} Bb4 {[%emt 0:05:48]} 5. Qb3 {[%emt 0:00:41]} a5 {[%emt 0:06:00]} 6. Nd5 {[%emt 0:01:46]} a4 {[%emt 0:01:47]} 7. Qc2 {[%emt 0:00:42]} Bc5 {[%emt 0:06:28]} 8. a3 {[%emt 0:00:38]} e4 {[%emt 0:02:16]} 9. Nxf6+ {[%emt 0:00:27]} Qxf6 {[%emt 0:00:39]} 10. Qxe4+ {[%emt 0:00:03]} Be7 {[%emt 0:00:34]} 11. d4 {[%emt 0:01:24]} O-O {[%emt 0:00:27]} 12. Bd2 {[%emt 0:04:26]} d6 {[%emt 0:01:21]} 13. Qc2 {[%emt 0:00:28]} Bg4 {[%emt 0:01:11]} 14. Be2 {[%emt 0:00:08]} Rfe8 {[%emt 0:00:44]} 15. Bc3 {[%emt 0:00:36]} Qh6 {[%emt 0:00:28]} 16. O-O {[%emt 0:01:01]} Bf6 {[%emt 0:01:28]} 17. Rad1 {[%emt 0:01:24]} Ne7 {[%emt 0:00:52]} 18. Ne1 {[%emt 0:03:42]} Bxe2 {[%emt 0:01:24]} 19. Qxe2 {[%emt 0:00:01]} d5 {[%emt 0:00:15]} 20. Bb4 {[%emt 0:03:06]} Nf5 {[%emt 0:05:33]} 21. Qc2 {[%emt 0:04:32]} Re4 {[%emt 0:03:47]} 22. cxd5 {[%emt 0:03:38]} Rae8 {[%emt 0:04:41]} 23. Qxc7 {[%emt 0:04:09]} Nxe3 {[%emt 0:11:02]} 24. fxe3 {[%emt 0:01:10]} Qxe3+ {[%emt 0:00:04]} 25. Kh1 {[%emt 0:01:21]} Rxd4 {[%emt 0:10:13]} 26. Nf3 {[%emt 0:04:16]} Rxd1 {[%emt 0:09:34]} 27. Rxd1 {[%emt 0:00:03]} Qb3 {[%emt 0:00:15]} 28. Qc1 {[%emt 0:04:07]} g6 {[%emt 0:07:40]} 29. d6 {[%emt 0:18:30]} Rd8 {[%emt 0:05:05]} 30. Bc3 {[%emt 0:01:41]} Bxc3 {[%emt 0:01:20]} 31. bxc3 {[%emt 0:00:02]} b5 {[%emt 0:01:37]} 32. d7 {[%emt 0:00:10]} Qe6 {[%emt 0:00:13]} 33. Qd2 {[%emt 0:00:22]} Kf8 {[%emt 0:01:48]} 34. Qd4 {[%emt 0:00:07]} f6 {[%emt 0:00:24]} 35. h3 {[%emt 0:01:56]} Kf7 {[%emt 0:00:18]} 36. Qd3 {[%emt 0:00:40]} Qc6 {[%emt 0:00:58]} 37. Qd5+ {[%emt 0:00:51]} Qxd5 {[%emt 0:01:01]} 38. Rxd5 {[%emt 0:00:05]} 1-0